[Event "46th GRE-chT Premier 2018"]
[Site "Rio Achaia"]
[Date "2018.07.11"]
[Round "2"]
[White "Tzikas, Athanasios G"]
[Black "Makridis, Dimitrios"]
[Result "0-1"]
[ECO "B41"]
[WhiteElo "1251"]
[BlackElo "1565"]
[Annotator "NA"]
[PlyCount "78"]
[EventDate "2018.07.10"]
[EventType "team-tourn"]
[EventCountry "GRE"]
[SourceTitle "playchess.com"]
[Source "ChessBase"]
[SourceQuality "1"]
[TimeControl "40/5400+30:1800+30"]

1. e4 {[%emt 0:00:00]} c5 {[%emt 0:00:00]} 2. Nf3 {[%emt 0:00:00]} e6 {[%emt 0:00:00]} 3. d4 {[%emt 0:00:00]} cxd4 {[%emt 0:00:00]} 4. Nxd4 {[%emt 0:00:06]} a6 {[%emt 0:00:00]} 5. Be2 {[%emt 0:01:24]} Nf6 {[%emt 0:00:16]} 6. Nc3 {[%emt 0:00:08]} Qc7 {[%emt 0:00:05]} 7. O-O {[%emt 0:00:59]} Be7 {[%emt 0:01:26]} 8. Be3 {[%emt 0:01:33]} b6 {[%emt 0:01:24]} 9. f4 {[%emt 0:02:12]} d6 {[%emt 0:00:58]} 10. Qe1 Bb7 {[%emt 0:00:37]} 11. Bf3 {[%emt 0:04:21]} Nbd7 {[%emt 0:02:00]} 12. Qg3 {[%emt 0:02:50]} h5 {[%emt 0:01:30]} 13. h3 {[%emt 0:08:10]} h4 {[%emt 0:02:54]} 14. Qf2 {[%emt 0:02:32]} b5 {[%emt 0:07:13]} 15. a3 {[%emt 0:02:19]} g6 {[%emt 0:02:48]} 16. Rfe1 {[%emt 0:07:18]} e5 {[%emt 0:04:39]} 17. Nb3 {[%emt 0:06:22]} exf4 {[%emt 0:07:11]} 18. Bxf4 {[%emt 0:00:20]} Ne5 {[%emt 0:00:51]} 19. Nd5 {[%emt 0:05:18]} Nxf3+ {[%emt 0:00:36]} 20. Qxf3 {[%emt 0:03:33]} Nxd5 {[%emt 0:00:05]} 21. exd5 {[%emt 0:00:14]} O-O {[%emt 0:01:05]} 22. Rf1 {[%emt 0:05:27]} Kg7 {[%emt 0:02:12]} 23. Qe3 {[%emt 0:08:20]} Rfe8 {[%emt 0:07:39]} 24. Bh6+ {[%emt 0:06:07]} Kg8 {[%emt 0:00:12]} 25. Qd4 {[%emt 0:03:09]} Bf8 {[%emt 0:00:33]} 26. Bxf8 {[%emt 0:00:45]} Rxf8 {[%emt 0:00:06]} 27. Rf4 {[%emt 0:01:51]} Qxc2 {[%emt 0:07:48]} 28. Rxh4 {[%emt 0:02:02]} f6 {[%emt 0:00:06]} 29. Na5 {[%emt 0:11:24]} Bc8 {[%emt 0:04:25]} 30. Rf1 {[%emt 0:02:03]} Bf5 {[%emt 0:01:08]} 31. Nc6 {[%emt 0:05:34]} Rae8 {[%emt 0:02:35]} 32. Qa7 {[%emt 0:02:04]} g5 {[%emt 0:03:12]} 33. Rh6 {[%emt 0:03:28]} Rf7 {[%emt 0:01:33]} 34. Qd4 {[%emt 0:04:04]} Re2 {[%emt 0:00:50]} 35. Rf2 {[%emt 0:00:52]} Rxf2 36. Qxf2 {[%emt 0:00:06]} Qxf2+ {[%emt 0:00:10]} 37. Kxf2 {[%emt 0:00:05]} Kg7 {[%emt 0:00:09]} 38. Rh5 {[%emt 0:01:24]} Bg6 {[%emt 0:00:12]} 39. Nd8 {[%emt 0:00:24]} Bxh5 {[%emt 0:00:08]} 0-1

[Event "46th GRE-chT Premier 2018"]
[Site "Rio Achaia"]
[Date "2018.07.11"]
[Round "2"]
[White "Paroglou, Marianna"]
[Black "Louka, Marianthi"]
[Result "1/2-1/2"]
[ECO "B22"]
[WhiteElo "1241"]
[BlackElo "1465"]
[Annotator "NA"]
[PlyCount "84"]
[EventDate "2018.07.10"]
[EventType "team-tourn"]
[EventCountry "GRE"]
[SourceTitle "playchess.com"]
[Source "ChessBase"]
[SourceQuality "1"]
[TimeControl "40/5400+30:1800+30"]

1. e4 {[%emt 0:00:00]} c5 {[%emt 0:00:00]} 2. c3 {[%emt 0:00:00]} d5 {[%emt 0:00:00]} 3. exd5 {[%emt 0:04:27]} Qxd5 {[%emt 0:00:00]} 4. Nf3 {[%emt 0:02:47]} Nf6 {[%emt 0:00:52]} 5. d4 {[%emt 0:02:46]} Bg4 {[%emt 0:23:00]} 6. Be2 {[%emt 0:02:14]} e6 {[%emt 0:06:46]} 7. O-O {[%emt 0:03:29]} Nc6 {[%emt 0:07:29]} 8. Be3 {[%emt 0:02:40]} Rd8 {[%emt 0:14:08]} 9. dxc5 {[%emt 0:05:14]} Qh5 {[%emt 0:04:20]} 10. Qb3 {[%emt 0:02:53]} Rb8 {[%emt 0:21:06]} 11. Rd1 {[%emt 0:16:27]} Bxc5 {[%emt 0:03:17]} 12. Bxc5 {[%emt 0:02:39]} Qxc5 {[%emt 0:00:06]} 13. Nbd2 {[%emt 0:03:10]} O-O {[%emt 0:00:53]} 14. Qc4 {[%emt 0:02:03]} Qb6 {[%emt 0:05:41]} 15. Qb5 {[%emt 0:02:11]} Qc7 {[%emt 0:02:47]} 16. Rac1 {[%emt 0:07:51]} Rfd8 {[%emt 0:00:28]} 17. Qc4 {[%emt 0:02:01]} b5 {[%emt 0:03:02]} 18. Qc5 {[%emt 0:06:48]} Rd5 {[%emt 0:00:11]} 19. Qa3 {[%emt 0:03:18]} Rbd8 {[%emt 0:02:52]} 20. Nf1 {[%emt 0:08:06]} Ne5 {[%emt 0:01:02]} 21. Rxd5 {[%emt 0:08:45]} Rxd5 {[%emt 0:00:19]} 22. Ne3 {[%emt 0:01:23]} Bxf3 {[%emt 0:01:35]} 23. gxf3 {[%emt 0:05:26]} Rd2 {[%emt 0:00:35]} 24. Rc2 {[%emt 0:02:47]} Rxc2 {[%emt 0:00:47]} 25. Nxc2 {[%emt 0:00:01]} Qb7 {[%emt 0:00:14]} 26. Qc5 {[%emt 0:02:00]} Nc4 {[%emt 0:00:52]} 27. b3 {[%emt 0:01:18]} Nd7 {[%emt 0:00:32]} 28. Qd4 {[%emt 0:00:30]} Nce5 {[%emt 0:00:21]} 29. Qe4 {[%emt 0:00:44]} Qxe4 {[%emt 0:00:41]} 30. fxe4 {[%emt 0:00:01]} a6 {[%emt 0:00:06]} 31. f4 {[%emt 0:00:50]} Ng6 {[%emt 0:00:17]} 32. f5 {[%emt 0:00:33]} exf5 {[%emt 0:00:25]} 33. exf5 {[%emt 0:00:23]} Ne7 {[%emt 0:00:02]} 34. Nd4 {[%emt 0:00:35]} Nd5 {[%emt 0:01:36]} 35. c4 {[%emt 0:00:34]} Nc3 {[%emt 0:00:12]} 36. cxb5 {[%emt 0:00:28]} Nxe2+ {[%emt 0:00:07]} 37. Nxe2 {[%emt 0:00:07]} axb5 {[%emt 0:00:03]} 38. a4 {[%emt 0:00:38]} bxa4 {[%emt 0:00:20]} 39. bxa4 {[%emt 0:00:04]} Nb8 {[%emt 0:00:05]} 40. a5 {[%emt 0:00:00]} Kf8 {[%emt 0:00:00]} 41. Kf2 {[%emt 0:02:11]} Ke7 {[%emt 0:01:03]} 42. Ke3 {[%emt 0:02:13]} Kd6 {[%emt 0:00:22]} 1/2-1/2

[Event "46th GRE-chT Premier 2018"]
[Site "Rio Achaia"]
[Date "2018.07.11"]
[Round "2"]
[White "Nikolaidou, Maria"]
[Black "Petraki, Argiro"]
[Result "0-1"]
[ECO "A45"]
[WhiteElo "1239"]
[BlackElo "1729"]
[Annotator "NA"]
[PlyCount "50"]
[EventDate "2018.07.10"]
[EventType "team-tourn"]
[EventCountry "GRE"]
[SourceTitle "playchess.com"]
[Source "ChessBase"]
[SourceQuality "1"]
[TimeControl "40/5400+30:1800+30"]

1. d4 {[%emt 0:00:00]} Nf6 {[%emt 0:00:00]} 2. Bf4 {[%emt 0:00:07]} e6 {[%emt 0:00:01]} 3. Nf3 {[%emt 0:00:21]} Be7 {[%emt 0:00:09]} 4. Nbd2 {[%emt 0:01:52]} b6 {[%emt 0:01:55]} 5. e3 {[%emt 0:02:27]} Bb7 {[%emt 0:00:19]} 6. c3 {[%emt 0:01:35]} O-O {[%emt 0:00:24]} 7. Bd3 {[%emt 0:01:05]} d5 {[%emt 0:01:21]} 8. O-O {[%emt 0:01:51]} c5 {[%emt 0:00:30]} 9. Re1 {[%emt 0:01:46]} Ne4 {[%emt 0:08:33]} 10. Qc2 {[%emt 0:03:23]} f5 {[%emt 0:04:39]} 11. b3 {[%emt 0:03:05]} Nd7 {[%emt 0:04:12]} 12. Rac1 {[%emt 0:11:44]} Rc8 {[%emt 0:04:10]} 13. h3 {[%emt 0:19:25]} cxd4 {[%emt 0:10:26]} 14. Nxd4 {[%emt 0:03:51]} Rxc3 {[%emt 0:04:51]} 15. Qb2 {[%emt 0:13:36]} Rxd3 {[%emt 0:05:02]} 16. Nxe4 {[%emt 0:04:47]} Rxd4 {[%emt 0:04:14]} 17. Qxd4 {[%emt 0:04:22]} fxe4 {[%emt 0:00:40]} 18. Rc7 {[%emt 0:04:14]} Rxf4 {[%emt 0:04:02]} 19. Rxb7 {[%emt 0:02:37]} Rf5 {[%emt 0:01:42]} 20. Rxa7 {[%emt 0:01:43]} Nc5 {[%emt 0:04:16]} 21. Rc1 {[%emt 0:02:09]} Bf6 {[%emt 0:02:56]} 22. Qd2 {[%emt 0:05:05]} Qb8 {[%emt 0:01:42]} 23. Ra3 {[%emt 0:02:01]} Nd3 {[%emt 0:03:49]} 24. Rf1 {[%emt 0:01:28]} Ne5 {[%emt 0:09:50]} 25. b4 {[%emt 0:04:01]} Nc4 {[%emt 0:01:02]} 0-1

[Event "46th GRE-chT Premier 2018"]
[Site "Rio Achaia"]
[Date "2018.07.11"]
[Round "2"]
[White "Vitzileou, Fedra"]
[Black "Aivazian, Elpida Sofia"]
[Result "0-1"]
[ECO "E80"]
[WhiteElo "1226"]
[BlackElo "1451"]
[Annotator "NA"]
[PlyCount "112"]
[EventDate "2018.07.10"]
[EventType "team-tourn"]
[EventCountry "GRE"]
[SourceTitle "playchess.com"]
[Source "ChessBase"]
[SourceQuality "1"]
[TimeControl "40/5400+30:1800+30"]

1. c4 {[%emt 0:00:00]} Nf6 {[%emt 0:00:00]} 2. d4 {[%emt 0:00:00]} g6 {[%emt 0:01:24]} 3. Nc3 {[%emt 0:00:00]} Bg7 {[%emt 0:00:04]} 4. e4 {[%emt 0:00:00]} d6 {[%emt 0:00:05]} 5. f3 {[%emt 0:00:03]} c5 {[%emt 0:01:44]} 6. Nge2 {[%emt 0:02:56]} O-O {[%emt 0:00:43]} 7. Be3 {[%emt 0:00:31]} cxd4 {[%emt 0:03:09]} 8. Nxd4 {[%emt 0:00:20]} Nc6 {[%emt 0:02:41]} 9. Be2 {[%emt 0:01:52]} Nxd4 {[%emt 0:08:56]} 10. Bxd4 {[%emt 0:00:20]} e6 {[%emt 0:03:24]} 11. O-O {[%emt 0:05:33]} d5 {[%emt 0:16:45]} 12. e5 {[%emt 0:08:53]} Nh5 {[%emt 0:06:05]} 13. cxd5 {[%emt 0:06:44]} exd5 {[%emt 0:13:16]} 14. f4 {[%emt 0:03:38]} Qh4 {[%emt 0:08:34]} 15. Bxh5 {[%emt 0:07:56]} gxh5 {[%emt 0:00:44]} 16. Qe1 {[%emt 0:11:29]} Qxe1 {[%emt 0:06:41]} 17. Raxe1 {[%emt 0:00:20]} Rd8 {[%emt 0:04:53]} 18. Re3 {[%emt 0:12:30]} Bf5 {[%emt 0:04:22]} 19. h4 {[%emt 0:09:59]} h6 {[%emt 0:08:54]} 20. Rg3 {[%emt 0:04:56]} Kh7 {[%emt 0:00:27]} 21. Nd1 {[%emt 0:01:42]} Rac8 {[%emt 0:02:47]} 22. Ne3 {[%emt 0:01:22]} Bd3 {[%emt 0:00:58]} 23. Rf2 {[%emt 0:01:12]} Be4 {[%emt 0:03:13]} 24. f5 {[%emt 0:02:12]} Rg8 {[%emt 0:00:31]} 25. f6 {[%emt 0:01:56]} Bf8 {[%emt 0:00:33]} 26. Rxg8 {[%emt 0:00:21]} Kxg8 {[%emt 0:00:01]} 27. Nf5 {[%emt 0:01:31]} Bxf5 {[%emt 0:01:20]} 28. Rxf5 {[%emt 0:00:07]} Rc4 {[%emt 0:01:06]} 29. Bf2 {[%emt 0:00:36]} d4 {[%emt 0:00:34]} 30. Rf4 {[%emt 0:01:54]} Rc1+ {[%emt 0:00:02]} 31. Kh2 {[%emt 0:00:27]} Bc5 {[%emt 0:00:28]} 32. Bxd4 {[%emt 0:00:15]} Rc4 {[%emt 0:00:04]} 33. Be3 {[%emt 0:01:16]} Rxf4 {[%emt 0:00:44]} 34. Bxf4 {[%emt 0:00:05]} Kh7 {[%emt 0:00:26]} 35. Kh3 {[%emt 0:00:10]} Bd4 {[%emt 0:00:19]} 36. g4 {[%emt 0:02:09]} Kg6 {[%emt 0:00:52]} 37. b3 {[%emt 0:01:14]} hxg4+ {[%emt 0:00:08]} 38. Kxg4 {[%emt 0:00:08]} h5+ {[%emt 0:00:06]} 39. Kf3 {[%emt 0:00:25]} Kf5 {[%emt 0:00:07]} 40. Bg3 {[%emt 0:00:00]} Bxe5 {[%emt 0:00:00]} 41. Bxe5 {[%emt 0:01:45]} Kxe5 {[%emt 0:00:16]} 42. Ke3 {[%emt 0:00:18]} Kxf6 {[%emt 0:00:04]} 43. Kf4 {[%emt 0:00:06]} Kg6 {[%emt 0:02:27]} 44. Ke5 {[%emt 0:02:00]} f5 {[%emt 0:01:08]} 45. Kf4 {[%emt 0:00:17]} Kf6 {[%emt 0:00:19]} 46. a3 {[%emt 0:00:51]} b5 {[%emt 0:02:01]} 47. a4 {[%emt 0:02:43]} bxa4 {[%emt 0:00:07]} 48. bxa4 {[%emt 0:00:04]} a5 {[%emt 0:00:05]} 49. Kf3 {[%emt 0:00:22]} Ke5 {[%emt 0:00:05]} 50. Ke3 {[%emt 0:00:11]} f4+ {[%emt 0:00:05]} 51. Kf2 {[%emt 0:00:39]} Ke4 {[%emt 0:00:08]} 52. Ke2 {[%emt 0:00:07]} f3+ {[%emt 0:00:05]} 53. Kf1 {[%emt 0:01:09]} Kf4 {[%emt 0:00:13]} 54. Kf2 {[%emt 0:00:08]} Kg4 {[%emt 0:00:04]} 55. Kf1 {[%emt 0:00:09]} Kxh4 {[%emt 0:00:13]} 56. Kf2 {[%emt 0:00:08]} Kg4 {[%emt 0:00:03]} 0-1

[Event "46th GRE-chT Premier 2018"]
[Site "Rio Achaia"]
[Date "2018.07.11"]
[Round "2"]
[White "Tsavdaras, Dimitrios"]
[Black "Paraskakis, Filippos"]
[Result "0-1"]
[ECO "B32"]
[WhiteElo "1214"]
[BlackElo "1344"]
[Annotator "NA"]
[PlyCount "50"]
[EventDate "2018.07.10"]
[EventType "team-tourn"]
[EventCountry "GRE"]
[SourceTitle "playchess.com"]
[Source "ChessBase"]
[SourceQuality "1"]
[TimeControl "40/5400+30:1800+30"]

1. e4 {[%emt 0:01:00]} c5 {[%emt 0:00:00]} 2. Nf3 {[%emt 0:00:07]} Nc6 {[%emt 0:00:00]} 3. d4 {[%emt 0:00:07]} cxd4 {[%emt 0:00:00]} 4. Nxd4 {[%emt 0:00:05]} e5 {[%emt 0:00:00]} 5. Nb5 {[%emt 0:00:17]} d6 {[%emt 0:00:00]} 6. c4 {[%emt 0:00:45]} Be7 {[%emt 0:00:25]} 7. N5c3 {[%emt 0:00:26]} f5 {[%emt 0:01:40]} 8. Bd3 {[%emt 0:00:51]} f4 {[%emt 0:00:48]} 9. Nd5 {[%emt 0:00:30]} Nf6 {[%emt 0:09:00]} 10. Nbc3 {[%emt 0:03:37]} Nd4 {[%emt 0:09:21]} 11. Bd2 {[%emt 0:06:57]} O-O {[%emt 0:20:31]} 12. Nxe7+ {[%emt 0:09:00]} Qxe7 {[%emt 0:00:09]} 13. O-O {[%emt 0:01:53]} Ne8 {[%emt 0:10:09]} 14. Ne2 f3 {[%emt 0:09:36]} 15. Nxd4 {[%emt 0:02:37]} fxg2 {[%emt 0:01:17]} 16. Kxg2 {[%emt 0:00:27]} exd4 {[%emt 0:01:27]} 17. Kh1 {[%emt 0:01:18]} Bh3 {[%emt 0:02:14]} 18. Rg1 {[%emt 0:00:46]} Rxf2 {[%emt 0:03:38]} 19. Be1 {[%emt 0:01:40]} Rxb2 {[%emt 0:02:43]} 20. Qh5 {[%emt 0:00:49]} Be6 {[%emt 0:02:05]} 21. Bh4 {[%emt 0:02:40]} Qf7 {[%emt 0:01:20]} 22. Qg5 {[%emt 0:09:08]} Qf3+ {[%emt 0:02:33]} 23. Rg2 {[%emt 0:00:34]} Rxg2 {[%emt 0:00:11]} 24. Qxg2 {[%emt 0:00:07]} Qxd3 {[%emt 0:00:27]} 25. Rf1 {[%emt 0:02:02]} Bh3 {[%emt 0:01:20]} 0-1

[Event "46th GRE-chT Premier 2018"]
[Site "Rio Achaia"]
[Date "2018.07.11"]
[Round "2"]
[White "Kratimenou, Maria"]
[Black "Batsi, Varvara"]
[Result "1/2-1/2"]
[ECO "B18"]
[WhiteElo "1207"]
[BlackElo "1241"]
[Annotator "NA"]
[PlyCount "105"]
[EventDate "2018.07.10"]
[EventType "team-tourn"]
[EventCountry "GRE"]
[SourceTitle "playchess.com"]
[Source "ChessBase"]
[SourceQuality "1"]
[TimeControl "40/5400+30:1800+30"]

1. e4 {[%emt 0:00:00]} c6 {[%emt 0:00:00]} 2. d4 {[%emt 0:00:00]} d5 {[%emt 0:00:00]} 3. Nc3 {[%emt 0:00:00]} dxe4 {[%emt 0:00:00]} 4. Nxe4 {[%emt 0:00:00]} Bf5 {[%emt 0:00:00]} 5. Ng3 {[%emt 0:00:00]} Bg6 {[%emt 0:00:00]} 6. h4 {[%emt 0:00:03]} h6 {[%emt 0:00:04]} 7. Nf3 {[%emt 0:00:03]} e6 {[%emt 0:01:24]} 8. h5 {[%emt 0:00:20]} Bh7 {[%emt 0:00:05]} 9. Bd3 {[%emt 0:00:07]} Bxd3 {[%emt 0:00:07]} 10. Qxd3 {[%emt 0:00:03]} Nf6 {[%emt 0:01:35]} 11. Bd2 {[%emt 0:01:01]} Be7 {[%emt 0:04:58]} 12. O-O-O {[%emt 0:01:49]} O-O {[%emt 0:04:26]} 13. Ne4 {[%emt 0:00:32]} Nxe4 {[%emt 0:01:46]} 14. Qxe4 {[%emt 0:00:57]} Qd5 {[%emt 0:00:14]} 15. Qxd5 {[%emt 0:00:14]} cxd5 {[%emt 0:00:11]} 16. Kb1 {[%emt 0:02:00]} Nc6 {[%emt 0:01:15]} 17. a3 {[%emt 0:00:53]} Bf6 {[%emt 0:01:18]} 18. Rhf1 {[%emt 0:20:54]} Rfe8 {[%emt 0:08:59]} 19. Be3 {[%emt 0:00:26]} Rac8 {[%emt 0:02:07]} 20. g3 {[%emt 0:04:04]} Ne7 {[%emt 0:16:12]} 21. Bf4 {[%emt 0:07:31]} Rc4 {[%emt 0:06:32]} 22. Be5 {[%emt 0:01:04]} Bxe5 {[%emt 0:05:12]} 23. Nxe5 {[%emt 0:00:18]} Rc7 {[%emt 0:00:07]} 24. Rfe1 {[%emt 0:01:26]} Nf5 {[%emt 0:02:39]} 25. g4 {[%emt 0:01:49]} Nd6 {[%emt 0:00:30]} 26. f3 {[%emt 0:04:03]} Rec8 {[%emt 0:04:59]} 27. Rd2 {[%emt 0:04:25]} Nc4 {[%emt 0:05:49]} 28. Nxc4 {[%emt 0:01:05]} dxc4 {[%emt 0:00:26]} 29. c3 {[%emt 0:02:24]} Rd8 {[%emt 0:02:53]} 30. Rde2 {[%emt 0:01:00]} Rd5 {[%emt 0:00:45]} 31. Re5 {[%emt 0:00:34]} Rcd7 {[%emt 0:00:34]} 32. Kc2 {[%emt 0:01:10]} Kf8 {[%emt 0:00:35]} 33. f4 {[%emt 0:02:06]} Rxe5 {[%emt 0:03:10]} 34. Rxe5 {[%emt 0:00:49]} Rd5 {[%emt 0:00:24]} 35. Kd2 {[%emt 0:00:28]} Ke7 {[%emt 0:04:24]} 36. Ke3 {[%emt 0:04:20]} Kd6 {[%emt 0:05:12]} 37. Ke4 {[%emt 0:03:42]} b5 {[%emt 0:02:45]} 38. f5 {[%emt 0:03:59]} exf5+ {[%emt 0:03:58]} 39. gxf5 {[%emt 0:00:14]} Rxe5+ {[%emt 0:00:44]} 40. dxe5+ {[%emt 0:00:00]} Kc5 {[%emt 0:00:00]} 41. e6 fxe6 {[%emt 0:01:55]} 42. fxe6 {[%emt 0:02:00]} Kd6 {[%emt 0:00:06]} 43. Kf5 {[%emt 0:00:13]} a5 {[%emt 0:05:08]} 44. Kg6 {[%emt 0:01:49]} Kxe6 {[%emt 0:00:47]} 45. Kxg7 {[%emt 0:00:20]} Kf5 {[%emt 0:00:58]} 46. Kxh6 {[%emt 0:00:18]} Kf6 {[%emt 0:00:05]} 47. Kh7 {[%emt 0:00:46]} Kf7 {[%emt 0:00:21]} 48. h6 {[%emt 0:00:32]} a4 {[%emt 0:00:11]} 49. Kh8 {[%emt 0:00:33]} Kf8 {[%emt 0:00:07]} 50. Kh7 {[%emt 0:00:15]} Kf7 {[%emt 0:00:09]} 51. Kh8 {[%emt 0:00:38]} Kf8 {[%emt 0:00:16]} 52. Kh7 {[%emt 0:00:17]} Kf7 {[%emt 0:00:47]} 53. Kh8 {[%emt 0:00:08]} 1/2-1/2

[Event "46th GRE-chT Premier 2018"]
[Site "Rio Achaia"]
[Date "2018.07.11"]
[Round "2"]
[White "Mplitsa, Artemis"]
[Black "Stathatos, Alexandros"]
[Result "1-0"]
[ECO "B38"]
[WhiteElo "1182"]
[BlackElo "1311"]
[Annotator "NA"]
[PlyCount "59"]
[EventDate "2018.07.10"]
[EventType "team-tourn"]
[EventCountry "GRE"]
[SourceTitle "playchess.com"]
[Source "ChessBase"]
[SourceQuality "1"]
[TimeControl "40/5400+30:1800+30"]

1. e4 c5 2. Nf3 Nc6 3. d4 cxd4 4. Nxd4 g6 5. c4 {[%emt 0:00:28]} Bg7 {[%emt 0:00:09]} 6. Be3 {[%emt 0:00:09]} Nf6 {[%emt 0:00:18]} 7. Nc3 {[%emt 0:00:36]} O-O {[%emt 0:00:06]} 8. Be2 {[%emt 0:01:53]} d6 {[%emt 0:00:13]} 9. O-O {[%emt 0:01:48]} Bd7 {[%emt 0:01:15]} 10. Qd2 {[%emt 0:04:07]} Rc8 {[%emt 0:08:23]} 11. Rac1 {[%emt 0:04:32]} Ne5 {[%emt 0:08:39]} 12. b3 {[%emt 0:04:07]} a6 {[%emt 0:15:43]} 13. Bh6 {[%emt 0:12:09]} Nc6 {[%emt 0:02:01]} 14. Bxg7 {[%emt 0:01:24]} Kxg7 {[%emt 0:00:22]} 15. Kh1 {[%emt 0:11:50]} Qb6 {[%emt 0:01:43]} 16. Rcd1 {[%emt 0:04:51]} Rfe8 {[%emt 0:07:30]} 17. Qe3 {[%emt 0:04:18]} Qd8 {[%emt 0:09:01]} 18. f4 {[%emt 0:06:45]} Rb8 {[%emt 0:08:13]} 19. f5 {[%emt 0:05:53]} Ne5 {[%emt 0:00:54]} 20. Qg3 {[%emt 0:08:44]} Rh8 {[%emt 0:02:42]} 21. h3 {[%emt 0:10:40]} Qc8 22. fxg6 {[%emt 0:03:28]} hxg6 {[%emt 0:03:04]} 23. Nf5+ {[%emt 0:01:38]} Bxf5 {[%emt 0:00:33]} 24. exf5 {[%emt 0:00:35]} Qc6 {[%emt 0:01:06]} 25. Bf3 {[%emt 0:03:25]} Qd7 {[%emt 0:00:56]} 26. Be4 {[%emt 0:03:56]} Nh5 {[%emt 0:01:59]} 27. Qxe5+ {[%emt 0:00:17]} dxe5 {[%emt 0:00:40]} 28. Rxd7 {[%emt 0:00:05]} Ng3+ {[%emt 0:00:15]} 29. Kg1 {[%emt 0:00:20]} Nxf1 {[%emt 0:00:14]} 30. Kxf1 {[%emt 0:00:19]} 1-0

[Event "46th GRE-chT Premier 2018"]
[Site "Rio Achaia"]
[Date "2018.07.11"]
[Round "2"]
[White "Karamitanis, Lazaros"]
[Black "Gkaripis, Marios Ilias"]
[Result "1-0"]
[ECO "D02"]
[WhiteElo "1159"]
[BlackElo "1374"]
[Annotator "NA"]
[PlyCount "87"]
[EventDate "2018.07.10"]
[EventType "team-tourn"]
[EventCountry "GRE"]
[SourceTitle "playchess.com"]
[Source "ChessBase"]
[SourceQuality "1"]
[TimeControl "40/5400+30:1800+30"]

1. d4 {[%emt 0:00:00]} d5 {[%emt 0:00:01]} 2. Nf3 {[%emt 0:00:00]} Nf6 {[%emt 0:00:13]} 3. Bf4 {[%emt 0:00:00]} e6 {[%emt 0:00:54]} 4. e3 {[%emt 0:00:04]} Bd6 {[%emt 0:00:53]} 5. Bg3 {[%emt 0:00:32]} O-O {[%emt 0:00:27]} 6. Bd3 {[%emt 0:00:33]} b6 {[%emt 0:01:06]} 7. Nbd2 {[%emt 0:00:17]} Bb7 {[%emt 0:00:49]} 8. O-O {[%emt 0:00:22]} c5 {[%emt 0:01:51]} 9. c3 {[%emt 0:00:38]} Nc6 {[%emt 0:04:06]} 10. Re1 {[%emt 0:02:34]} Bxg3 {[%emt 0:02:59]} 11. hxg3 {[%emt 0:00:12]} cxd4 {[%emt 0:03:28]} 12. exd4 {[%emt 0:01:17]} Rc8 {[%emt 0:02:09]} 13. Qe2 {[%emt 0:05:03]} h6 {[%emt 0:02:53]} 14. Ne5 {[%emt 0:01:12]} Ne8 {[%emt 0:07:14]} 15. Ndf3 {[%emt 0:02:45]} Nd6 {[%emt 0:01:57]} 16. Bc2 {[%emt 0:04:31]} Qc7 {[%emt 0:08:19]} 17. Qd3 {[%emt 0:11:41]} Ne4 {[%emt 0:01:19]} 18. Qe2 {[%emt 0:01:49]} Nf6 {[%emt 0:05:42]} 19. Qd3 {[%emt 0:03:28]} Na5 {[%emt 0:03:47]} 20. Nd2 {[%emt 0:01:37]} Nc4 {[%emt 0:02:49]} 21. Rab1 {[%emt 0:07:06]} Rfd8 {[%emt 0:05:38]} 22. Ndf3 {[%emt 0:17:26]} Ba6 {[%emt 0:04:54]} 23. Qe2 {[%emt 0:09:17]} Qb7 {[%emt 0:09:59]} 24. Bd3 {[%emt 0:04:07]} b5 {[%emt 0:01:50]} 25. Rec1 {[%emt 0:02:50]} Nd7 {[%emt 0:02:57]} 26. a3 {[%emt 0:03:42]} Qc7 {[%emt 0:03:29]} 27. Bxc4 {[%emt 0:04:00]} bxc4 {[%emt 0:00:46]} 28. Re1 {[%emt 0:01:32]} Rb8 {[%emt 0:00:53]} 29. Nxf7 {[%emt 0:02:05]} Kxf7 {[%emt 0:02:32]} 30. Qxe6+ {[%emt 0:00:09]} Kf8 {[%emt 0:00:21]} 31. Qxa6 {[%emt 0:00:26]} Rb6 {[%emt 0:06:06]} 32. Qa4 {[%emt 0:00:42]} Rdb8 {[%emt 0:03:05]} 33. Qc2 {[%emt 0:01:31]} Qb7 {[%emt 0:02:36]} 34. Re2 {[%emt 0:00:49]} Ra6 {[%emt 0:00:31]} 35. Ree1 {[%emt 0:01:23]} Rb6 {[%emt 0:00:21]} 36. Qe2 {[%emt 0:04:13]} Nf6 {[%emt 0:01:25]} 37. Ne5 {[%emt 0:01:51]} Rxb2 {[%emt 0:01:46]} 38. Rxb2 {[%emt 0:00:57]} Qxb2 {[%emt 0:00:08]} 39. Qf3 {[%emt 0:01:26]} Kg8 {[%emt 0:01:24]} 40. Nc6 {[%emt 0:00:00]} Rb3 {[%emt 0:00:00]} 41. Ne7+ {[%emt 0:02:21]} Kh8 {[%emt 0:04:47]} 42. Nxd5 {[%emt 0:01:18]} Nxd5 {[%emt 0:03:37]} 43. Re8+ {[%emt 0:00:19]} Kh7 {[%emt 0:00:21]} 44. Qf5+ {[%emt 0:00:15]} 1-0